bitfinex/quotes_BTCUSD_20260110
["timestamp","ask_amount","ask_price","bid_price","bid_amount"]
[1768050898204,0.04594578,90710.0,90698.0,0.0110256]
[1768050898899,0.04594578,90710.0,90697.0,0.01102572]
[1768050899834,0.04594578,90710.0,90698.0,0.0110256]
[1768050900661,0.04594578,90710.0,90697.0,0.01102572]
[1768050900662,0.04594578,90710.0,90696.0,0.01102584]
[1768050900849,0.04594578,90710.0,90697.0,0.01102572]
[1768050902291,0.05696992,90710.0,90696.0,0.01102584]
[1768050902479,0.05696992,90710.0,90695.0,0.0469284]
[1768050902727,0.04825093,90706.0,90695.0,5.816e-05]
[1768050903753,0.04825093,90706.0,90695.0,0.01108412]
[1768050904161,0.04825093,90706.0,90695.0,5.816e-05]
[1768050904592,0.04825093,90706.0,90695.0,0.01108412]
[1768050906277,0.13215568,90700.0,90695.0,0.01108412]
[1768050906676,0.13215568,90700.0,90695.0,5.816e-05]
[1768050907218,0.04825093,90706.0,90695.0,5.816e-05]
[1768050907622,0.04825093,90706.0,90695.0,0.01108412]
[1768050908447,0.04825093,90706.0,90695.0,5.816e-05]
[1768050908645,0.04825093,90706.0,90695.0,0.01108412]
[1768050910613,0.04825093,90706.0,90695.0,5.816e-05]
[1768050910817,0.04825093,90706.0,90695.0,0.01108412]
[1768050915682,0.04825093,90706.0,90696.0,0.01102584]
[1768050916145,0.01102402,90711.0,90697.0,0.01102572]
[1768050916344,0.04736826,90712.0,90698.0,0.0110256]
[1768050916540,0.05839215,90712.0,90698.0,0.0110256]
[1768050916753,0.04736826,90712.0,90699.0,0.01102547]
[1768050917102,0.05839215,90712.0,90698.0,0.0110256]
[1768050917301,0.05839215,90712.0,90699.0,0.01102547]
[1768050918101,0.04736826,90712.0,90699.0,0.01102547]
[1768050918851,0.05839215,90712.0,90698.0,0.0110256]
[1768050919056,0.04736826,90712.0,90699.0,0.01102547]
[1768050919627,0.04736826,90712.0,90696.0,0.06615458]
[1768050919794,0.04736826,90712.0,90698.0,0.0110256]
[1768050920046,0.04736826,90712.0,90699.0,0.01102547]
[1768050920220,0.04736826,90712.0,90698.0,0.0110256]
[1768050921310,0.05839215,90712.0,90699.0,0.01102547]
[1768050921739,0.04736826,90712.0,90700.0,0.01102535]
[1768050923667,0.04736826,90712.0,90701.0,0.01102523]
[1768050924079,0.04736826,90712.0,90700.0,0.01102535]
[1768050927085,0.04736826,90712.0,90701.0,0.01102523]
[1768050927309,0.04736826,90712.0,90700.0,0.01102535]
[1768050927763,0.04736826,90712.0,90699.0,0.01102547]
[1768050929549,0.04736826,90712.0,90700.0,0.01102535]
[1768050929760,0.04736826,90712.0,90699.0,0.01102547]
[1768050930787,0.04736826,90712.0,90700.0,0.01102535]
[1768050934007,0.04736826,90712.0,90701.0,0.01102523]
[1768050934328,0.04736826,90712.0,90700.0,0.01102535]
[1768050934537,0.04736826,90712.0,90701.0,0.01102523]
[1768050935688,0.04736826,90712.0,90700.0,0.01102535]
[1768050936175,0.05839215,90712.0,90697.0,0.01102572]
[1768050936384,0.04902001,90709.0,90697.0,0.01102572]
[1768050936598,0.04902001,90709.0,90696.0,0.01102584]
[1768050942149,0.01102438,90708.0,90695.0,0.01108412]
[1768050942399,0.06004427,90709.0,90695.0,0.01108412]
[1768050942755,0.04902001,90709.0,90698.0,0.0110256]
[1768050943175,0.04902001,90709.0,90697.0,0.01102572]
[1768050943716,0.04902001,90709.0,90698.0,0.0110256]
[1768050944083,0.04902001,90709.0,90700.0,0.01102535]
[1768050944277,0.04902001,90709.0,90699.0,0.01102547]
[1768050947481,0.04902001,90709.0,90700.0,0.01102535]
[1768050947998,0.04902001,90709.0,90699.0,0.01102547]
[1768050948726,0.04902001,90709.0,90700.0,0.01102535]
[1768050950022,0.04902001,90709.0,90699.0,0.01102547]
[1768050952683,0.04902001,90709.0,90700.0,0.01102535]
[1768050953630,0.04902001,90709.0,90699.0,0.01102547]
[1768050953776,0.04902001,90709.0,90700.0,0.01102535]
[1768050955252,0.04902001,90709.0,90699.0,0.01102547]
[1768050956267,0.04902001,90709.0,90700.0,0.01102535]
[1768050956651,0.04902001,90709.0,90701.0,0.01102523]
[1768050956805,0.04902001,90709.0,90700.0,0.01102535]
[1768050959505,0.04902001,90709.0,90698.0,0.0110256]
[1768050960011,0.04902001,90709.0,90699.0,0.01102547]
[1768050960205,0.04902001,90709.0,90700.0,0.01102535]
[1768050960365,0.01102377,90713.0,90699.0,0.01102547]
[1768050960546,0.01102414,90710.0,90697.0,0.01102572]
[1768050960755,0.01102414,90710.0,90696.0,0.05953168]
[1768050960963,0.01102414,90710.0,90696.0,0.04850584]
[1768050961818,0.01102426,90709.0,90696.0,0.04850584]
[1768050962175,0.01102426,90709.0,90695.0,0.01108412]
[1768050962382,0.04770148,90706.0,90696.0,0.02208]
[1768050964880,0.04770148,90706.0,90696.0,0.03310584]
[1768050965309,0.04770148,90706.0,90696.0,0.02208]
[1768050965951,0.04770148,90706.0,90696.0,0.03310584]
[1768050966751,0.04770148,90706.0,90697.0,0.01102572]
[1768050967483,0.04770148,90706.0,90696.0,0.03310584]
[1768050967658,0.04770148,90706.0,90696.0,0.02208]
[1768050967861,0.04770148,90706.0,90696.0,0.03310584]
[1768050969395,0.04770148,90706.0,90696.0,0.02208]
[1768050974379,0.04770148,90706.0,90696.0,0.03310584]
[1768050974921,0.04770148,90706.0,90696.0,0.02208]
[1768050975127,0.04770148,90706.0,90696.0,0.03310584]
[1768050975816,0.04770148,90706.0,90696.0,0.02208]
[1768050976239,0.04770148,90706.0,90696.0,0.03310584]
[1768050977977,0.04770148,90706.0,90696.0,0.02208]
[1768050990137,0.0587261,90706.0,90696.0,0.02208]
[1768050991183,0.01102475,90705.0,90696.0,0.02208]
[1768050991387,0.0587261,90706.0,90696.0,0.02208]
[1768050992827,0.04770148,90706.0,90696.0,0.02208]
[1768050994778,0.01102414,90710.0,90696.0,0.02208]
[1768050994959,0.05821923,90709.0,90695.0,0.03316412]
[1768050995165,0.01102438,90708.0,90696.0,0.02208]
[1768050995369,0.05821923,90709.0,90696.0,0.02208]
[1768050995570,0.05821923,90709.0,90696.0,0.03310584]
[1768050995798,0.05821923,90709.0,90696.0,0.02208]
[1768050996005,0.04719497,90709.0,90696.0,0.03310584]
[1768050996751,0.04719497,90709.0,90697.0,0.01102572]
[1768050997394,0.04719497,90709.0,90696.0,0.03310584]
[1768050998209,0.04719497,90709.0,90696.0,0.02208]
[1768050998744,0.05821923,90709.0,90696.0,0.02208]
[1768050999565,0.05821923,90709.0,90696.0,0.03310584]
[1768050999951,0.04719497,90709.0,90696.0,0.03310584]
[1768051000155,0.04719497,90709.0,90697.0,0.01102572]
[1768051000293,0.04719497,90709.0,90698.0,0.0110256]
[1768051000500,0.04719497,90709.0,90697.0,0.01102572]
[1768051000706,0.04719497,90709.0,90698.0,0.0110256]
[1768051000918,0.04719497,90709.0,90697.0,0.01102572]
[1768051001321,0.04719497,90709.0,90699.0,0.01102547]
[1768051001617,0.05821862,90714.0,90700.0,0.01102535]
[1768051002026,0.04719497,90714.0,90701.0,0.01102523]
[1768051002265,0.05821862,90714.0,90700.0,0.01102535]
[1768051002459,0.04719497,90714.0,90700.0,0.01102535]
[1768051002763,0.05821862,90714.0,90700.0,0.01102535]
[1768051002972,0.0001497,90717.0,90707.0,0.04661908]
[1768051003183,0.0001497,90717.0,90709.0,0.01102426]
[1768051003451,0.0001497,90717.0,90707.0,0.04661908]
[1768051003650,0.0001497,90717.0,90707.0,0.05764358]
[1768051004061,0.0001497,90717.0,90709.0,0.01102426]
[1768051004651,0.0001497,90717.0,90710.0,0.01102414]
[1768051005460,0.0001497,90717.0,90709.0,0.01102426]
[1768051006276,0.0001497,90717.0,90706.0,0.02208]
[1768051006584,0.01117299,90717.0,90706.0,0.02208]
[1768051006755,0.0001497,90717.0,90706.0,0.02208]
[1768051007342,0.01117299,90717.0,90706.0,0.02208]
[1768051009216,0.0001497,90717.0,90706.0,0.02208]
[1768051009895,0.0001497,90717.0,90706.0,0.06869908]
[1768051010250,0.00010942,90717.0,90706.0,0.06869908]
[1768051010451,0.00010942,90717.0,90707.0,0.0110245]
[1768051011077,0.00010942,90717.0,90708.0,0.01102438]
[1768051011284,0.00010942,90717.0,90706.0,0.06869908]
[1768051011418,0.00010942,90717.0,90706.0,0.0797237]
[1768051011622,0.00010942,90717.0,90706.0,0.13484682]
[1768051011828,0.00010942,90717.0,90710.0,0.01102414]
[1768051012241,0.00010942,90717.0,90709.0,0.01102426]
[1768051012993,1.918e-05,90717.0,90710.0,0.01102414]
[1768051013334,1.918e-05,90717.0,90709.0,0.01102426]
[1768051013534,1.918e-05,90717.0,90710.0,0.01102414]
[1768051013832,1.918e-05,90717.0,90709.0,0.01102426]
[1768051014178,1.918e-05,90717.0,90710.0,0.01102414]
[1768051014374,1.918e-05,90717.0,90706.0,0.06869908]
[1768051014585,1.918e-05,90717.0,90707.0,0.0110245]
[1768051014788,1.918e-05,90717.0,90708.0,0.01102438]
[1768051016289,1.918e-05,90717.0,90709.0,0.01102426]
[1768051017092,1.918e-05,90717.0,90708.0,0.01102438]
[1768051017590,1.918e-05,90717.0,90709.0,0.01102426]
[1768051017755,1.918e-05,90717.0,90708.0,0.01102438]
[1768051018718,1.918e-05,90717.0,90709.0,0.01102426]
[1768051019655,1.918e-05,90717.0,90708.0,0.01102438]
[1768051020737,1.918e-05,90717.0,90706.0,0.0797237]
[1768051020946,1.918e-05,90717.0,90708.0,0.01102438]
[1768051021146,1.918e-05,90717.0,90707.0,0.0110245]
[1768051023168,1.918e-05,90717.0,90706.0,0.0797237]
[1768051023537,1.918e-05,90717.0,90707.0,0.0110245]
[1768051023739,1.918e-05,90717.0,90706.0,0.0797237]
[1768051024586,1.918e-05,90717.0,90707.0,0.0110245]
[1768051024998,1.918e-05,90717.0,90708.0,0.01102438]
[1768051025197,1.918e-05,90717.0,90707.0,0.0110245]
[1768051025421,1.918e-05,90717.0,90708.0,0.01102438]
[1768051026037,1.918e-05,90717.0,90707.0,0.0110245]
[1768051026265,1.918e-05,90717.0,90708.0,0.01102438]
[1768051026863,1.918e-05,90717.0,90707.0,0.0110245]
[1768051027694,1.918e-05,90717.0,90708.0,0.01102438]
[1768051028094,1.918e-05,90717.0,90706.0,0.0797237]
[1768051028468,1.918e-05,90717.0,90707.0,0.0110245]
[1768051029207,1.918e-05,90717.0,90708.0,0.01102438]
[1768051029783,1.918e-05,90717.0,90709.0,0.01102426]
[1768051031025,1.918e-05,90717.0,90707.0,0.0110245]
[1768051031404,1.918e-05,90717.0,90708.0,0.01102438]
[1768051032046,1.918e-05,90717.0,90709.0,0.01102426]
[1768051032484,1.918e-05,90717.0,90707.0,0.0110245]
[1768051034222,1.918e-05,90717.0,90708.0,0.01102438]
[1768051034427,1.918e-05,90717.0,90707.0,0.0110245]
[1768051034787,1.918e-05,90717.0,90709.0,0.01102426]
[1768051035223,1.918e-05,90717.0,90707.0,0.0110245]
[1768051035808,1.918e-05,90717.0,90708.0,0.01102438]
[1768051037890,1.918e-05,90717.0,90707.0,0.0110245]
[1768051039460,1.918e-05,90717.0,90706.0,0.02208]
[1768051039677,1.918e-05,90717.0,90706.0,0.03310462]
[1768051039893,1.918e-05,90717.0,90706.0,0.02208]
[1768051040104,1.918e-05,90717.0,90706.0,0.03310462]
[1768051040439,1.918e-05,90717.0,90707.0,0.0110245]
[1768051040838,1.918e-05,90717.0,90708.0,0.01102438]
[1768051041739,1.918e-05,90717.0,90709.0,0.01102426]
[1768051043131,1.918e-05,90717.0,90710.0,0.01102414]
[1768051044578,1.918e-05,90717.0,90709.0,0.01102426]
[1768051044754,1.918e-05,90717.0,90706.0,0.03310462]
[1768051044960,1.918e-05,90717.0,90707.0,0.05512244]
[1768051045163,1.918e-05,90717.0,90709.0,0.01102426]
[1768051045558,1.918e-05,90717.0,90707.0,0.0110245]
[1768051045763,1.918e-05,90717.0,90708.0,0.01102438]
[1768051047295,1.918e-05,90717.0,90709.0,0.01102426]
[1768051047819,1.918e-05,90717.0,90710.0,0.01102414]
[1768051047974,1.918e-05,90717.0,90709.0,0.01102426]
[1768051048179,1.918e-05,90717.0,90708.0,0.01102438]
[1768051050552,1.918e-05,90717.0,90707.0,0.0110245]
[1768051051218,1.918e-05,90717.0,90709.0,0.01102426]
[1768051054129,1.918e-05,90717.0,90710.0,0.01102414]
[1768051054351,1.918e-05,90717.0,90709.0,0.01102426]
[1768051055374,1.918e-05,90717.0,90710.0,0.01102414]
[1768051055523,1.918e-05,90717.0,90709.0,0.01102426]
[1768051056301,1.918e-05,90717.0,90710.0,0.01102414]
[1768051056523,1.918e-05,90717.0,90709.0,0.01102426]
[1768051056805,1.918e-05,90717.0,90706.0,0.02208]
[1768051056987,0.05048216,90709.0,90708.0,0.02208]
[1768051057198,0.04948316,90709.0,90708.0,0.02208]
[1768051059238,0.04948316,90709.0,90708.0,0.021081]
[1768051060397,0.04948316,90709.0,90708.0,0.02103981]
[1768051063520,0.04948316,90709.0,90708.0,0.01103981]
[1768051064573,0.06050742,90709.0,90701.0,0.02208]
[1768051066068,0.04948316,90709.0,90701.0,0.02208]
[1768051073631,0.01102365,90714.0,90701.0,0.02208]
[1768051074890,0.05771868,90715.0,90701.0,0.02208]
[1768051075106,0.05771868,90715.0,90701.0,0.03310523]
[1768051075378,0.01102365,90714.0,90701.0,0.02208]
[1768051075763,0.01102365,90714.0,90701.0,0.03310523]
[1768051076170,0.05771868,90715.0,90701.0,0.03310523]
[1768051076373,0.04669515,90715.0,90701.0,0.0882314]
[1768051076575,0.04669515,90715.0,90701.0,0.03310523]
[1768051077000,0.05771868,90715.0,90701.0,0.03310523]
[1768051077367,0.05771868,90715.0,90702.0,0.01102511]
[1768051077601,0.04669515,90715.0,90701.0,0.03310523]
[1768051077809,0.04669515,90715.0,90702.0,0.01102511]
[1768051079227,0.01102365,90714.0,90701.0,0.02208]
[1768051079651,0.01102389,90712.0,90701.0,0.02208]
[1768051080194,0.01102377,90713.0,90701.0,0.02208]
[1768051080314,0.01102389,90712.0,90701.0,0.03310389]
[1768051080517,0.01102414,90710.0,90701.0,0.03310389]
[1768051081572,0.01102389,90712.0,90701.0,0.03310389]
[1768051082325,0.01102402,90711.0,90701.0,0.03310389]
[1768051082526,0.01102438,90708.0,90701.0,0.03310389]
[1768051082734,0.04669515,90708.0,90701.0,0.03310389]
[1768051082937,0.05771953,90708.0,90701.0,0.03310389]
[1768051083938,0.0110245,90707.0,90701.0,0.03310389]
[1768051084181,0.05771953,90708.0,90701.0,0.03310389]
[1768051084329,0.0494703,90705.0,90701.0,0.03310389]
[1768051087984,0.0110245,90707.0,90701.0,0.03310389]
[1768051088187,0.01102438,90708.0,90701.0,0.03310389]
[1768051088395,0.0494703,90707.0,90701.0,0.03310389]
[1768051088849,0.0604948,90707.0,90701.0,0.03310389]
[1768051090299,0.0494703,90705.0,90701.0,0.03310389]
[1768051090654,0.0110245,90707.0,90701.0,0.03310389]
[1768051090853,0.01102438,90708.0,90701.0,0.03310389]
[1768051091866,0.01102438,90708.0,90701.0,0.02208]
[1768051092226,0.06614644,90708.0,90701.0,0.02208]
[1768051092454,0.01102438,90708.0,90701.0,0.02208]
[1768051092656,0.0110245,90707.0,90701.0,0.02208]
[1768051093620,0.01102438,90708.0,90701.0,0.02208]
[1768051094700,0.01102426,90709.0,90701.0,0.02208]
[1768051094904,0.01102438,90708.0,90701.0,0.02208]
[1768051095103,0.01102426,90709.0,90701.0,0.02208]
[1768051095926,0.06049444,90710.0,90701.0,0.02208]
[1768051096734,0.0494703,90710.0,90701.0,0.02208]
[1768051097458,0.06049444,90710.0,90701.0,0.02208]
[1768051097637,0.01102438,90708.0,90701.0,0.02208]
[1768051098039,0.01102426,90709.0,90701.0,0.02208]
[1768051098267,0.06049444,90710.0,90701.0,0.02208]
[1768051098444,0.01102426,90709.0,90701.0,0.02208]
[1768051098642,0.06049444,90710.0,90701.0,0.02208]
[1768051099724,0.01102438,90708.0,90701.0,0.02208]
[1768051099887,0.01102426,90709.0,90701.0,0.02208]
[1768051100488,0.01102438,90708.0,90701.0,0.02208]
[1768051100696,0.01102426,90709.0,90701.0,0.02208]
[1768051100897,0.06049456,90709.0,90701.0,0.02208]
[1768051101399,0.01102438,90708.0,90701.0,0.02208]
[1768051102633,0.06049468,90708.0,90701.0,0.02208]
[1768051102812,0.0110245,90707.0,90701.0,0.02208]
[1768051103245,0.0494703,90706.0,90701.0,0.02208]
[1768051103441,0.06049492,90706.0,90701.0,0.02208]
[1768051103690,0.0494703,90706.0,90701.0,0.02208]
[1768051111073,0.01102438,90708.0,90701.0,0.02208]
[1768051111861,0.0110245,90707.0,90701.0,0.02208]
[1768051112066,0.01102438,90708.0,90701.0,0.02208]
[1768051113092,0.01102426,90709.0,90701.0,0.02208]
[1768051113367,0.01102438,90708.0,90701.0,0.02208]
[1768051114151,0.01102426,90709.0,90701.0,0.02208]
[1768051114414,0.05916806,90710.0,90701.0,0.02208]
[1768051114837,0.01102426,90709.0,90701.0,0.02208]
[1768051115137,0.05916806,90710.0,90701.0,0.02208]
[1768051115341,0.01102426,90709.0,90701.0,0.02208]
[1768051115675,0.05916806,90710.0,90701.0,0.02208]
[1768051117355,0.04814392,90710.0,90701.0,0.02208]
[1768051117761,0.05916806,90710.0,90701.0,0.02208]
[1768051117939,0.04814392,90710.0,90701.0,0.02208]
[1768051120587,0.01102402,90711.0,90701.0,0.02208]
[1768051120788,0.01102389,90712.0,90701.0,0.02208]
[1768051120949,0.01102402,90711.0,90701.0,0.02208]
[1768051121774,0.01102414,90710.0,90701.0,0.02208]
[1768051122181,0.01102426,90709.0,90701.0,0.02208]
[1768051122560,0.01102414,90710.0,90701.0,0.02208]
[1768051122767,0.01102426,90709.0,90701.0,0.02208]
[1768051123036,0.01102414,90710.0,90701.0,0.02208]
[1768051123945,0.01102402,90711.0,90701.0,0.02208]
[1768051124961,0.01102389,90712.0,90701.0,0.02208]
[1768051125116,0.05916769,90713.0,90701.0,0.02208]
[1768051125547,0.01102402,90711.0,90701.0,0.02208]
[1768051126552,0.05916794,90711.0,90701.0,0.02208]
[1768051127298,0.04814392,90711.0,90701.0,0.02208]
[1768051128884,0.05916794,90711.0,90701.0,0.02208]
[1768051129303,0.04814392,90711.0,90701.0,0.02208]
[1768051129846,0.05916794,90711.0,90701.0,0.02208]
[1768051131982,0.04814392,90711.0,90701.0,0.02208]
[1768051132247,0.05916794,90711.0,90701.0,0.02208]
[1768051133134,0.04814392,90711.0,90701.0,0.02208]
[1768051136688,0.01102365,90714.0,90701.0,0.02208]
[1768051137095,0.01102353,90715.0,90701.0,0.03310523]
[1768051137683,0.01102353,90715.0,90701.0,0.02208]
[1768051138028,0.07131519,90716.0,90701.0,0.02208]
[1768051138241,0.07131519,90716.0,90701.0,0.03310523]
[1768051138583,0.01102353,90715.0,90702.0,0.01102511]
[1768051139528,0.01102353,90715.0,90701.0,0.03310523]
[1768051139767,0.07131519,90716.0,90702.0,0.01102511]
[1768051140217,0.07131519,90716.0,90703.0,0.01102499]
[1768051140750,0.06029178,90716.0,90703.0,0.01102499]
[1768051141306,0.06029178,90716.0,90701.0,0.02208]
[1768051141508,0.07131519,90716.0,90702.0,0.01102511]
[1768051141750,0.01102134,90733.0,90716.0,0.010999]
[1768051141939,0.04926728,90728.0,90717.0,0.02208]
[1768051142216,0.04926728,90728.0,90717.0,0.04412463]
[1768051142425,0.12217322,90733.0,90718.0,0.01102317]
[1768051142606,0.11115188,90733.0,90718.0,0.01102317]
[1768051142827,0.01102159,90731.0,90717.0,0.09190312]
[1768051143250,0.01102159,90731.0,90717.0,0.08088178]
[1768051143467,0.01102146,90732.0,90717.0,0.08088178]
[1768051143672,0.01102171,90730.0,90718.0,0.01102159]
[1768051143892,0.01102159,90731.0,90718.0,0.01102159]
[1768051144326,0.01102159,90734.0,90723.0,0.04594489]
[1768051144532,8.8e-07,90726.0,90724.0,0.04594489]
[1768051144743,8.8e-07,90726.0,90725.0,0.04594489]
[1768051144959,8.8e-07,90726.0,90725.0,0.11207698]
[1768051146051,8.8e-07,90726.0,90725.0,0.13415698]
[1768051146690,1e-08,90735.0,90734.0,0.10105102]
[1768051146932,0.00065618,90744.0,90737.0,0.01102086]
[1768051147139,0.00065618,90744.0,90739.0,0.0569655]
[1768051147348,0.00065618,90744.0,90739.0,0.04594489]
[1768051147562,0.00065618,90744.0,90742.0,0.04594489]
[1768051147765,1.8e-07,90744.0,90743.0,0.06802489]
[1768051149045,1.8e-07,90744.0,90743.0,0.12312555]
[1768051149418,1.8e-07,90744.0,90743.0,0.06802489]
[1768051149625,1.8e-07,90744.0,90743.0,0.12312555]
[1768051149830,1.8e-07,90744.0,90743.0,0.06802489]
[1768051152608,1.8e-07,90744.0,90743.0,0.03309831]
[1768051154836,1.8e-07,90744.0,90743.0,0.01101831]
[1768051155052,1.8e-07,90744.0,90743.0,0.03309831]
[1768051163869,1.8e-07,90744.0,90743.0,0.01101831]
[1768051164077,1.8e-07,90744.0,90743.0,0.03309831]
[1768051165738,1.8e-07,90744.0,90743.0,0.01101831]
[1768051166063,1.8e-07,90744.0,90743.0,0.03309831]
[1768051166471,1.8e-07,90744.0,90743.0,0.02208]
[1768051169348,1.8e-07,90744.0,90743.0,0.021256]
[1768051180242,1.8e-07,90744.0,90743.0,0.02118771]
[1768051193373,1.8e-07,90744.0,90741.0,0.06612206]
[1768051193581,1.8e-07,90744.0,90742.0,0.02208]
[1768051193879,1.8e-07,90744.0,90742.0,0.07718115]
[1768051194682,1.8e-07,90744.0,90742.0,0.02208]
[1768051195425,1.8e-07,90744.0,90742.0,0.07718113]
[1768051197599,1.8e-07,90744.0,90743.0,0.05510066]
[1768051197876,1.8e-07,90744.0,90742.0,0.05510113]
[1768051198094,1.8e-07,90744.0,90743.0,0.02208]
[1768051223717,1.8e-07,90744.0,90743.0,0.01324811]
[1768051224235,1.8e-07,90744.0,90743.0,0.01312694]
[1768051227688,1.8e-07,90744.0,90735.0,0.01152506]
[1768051227930,1.8e-07,90744.0,90741.0,0.02208]
[1768051232284,0.04928057,90744.0,90741.0,0.02208]
[1768051232492,0.04928039,90732.0,90726.0,0.02208]
[1768051232732,0.06030185,90732.0,90725.0,0.02208]
[1768051233497,0.04774323,90727.0,90725.0,0.02208]
[1768051233717,0.0587653,90727.0,90722.0,0.00014952]
[1768051233950,0.04774323,90727.0,90722.0,0.00014952]
[1768051234176,0.0587653,90727.0,90722.0,0.00014952]
[1768051235109,0.04774323,90727.0,90722.0,0.00014952]
[1768051236673,0.05876542,90726.0,90722.0,0.00014952]
[1768051236920,0.04774323,90726.0,90722.0,0.00014952]
[1768051240643,0.04774323,90726.0,90722.0,0.00010445]
[1768051241005,0.04774323,90731.0,90722.0,0.00010445]
[1768051244923,0.05876421,90736.0,90731.0,0.000999]
[1768051245081,0.05876421,90736.0,90722.0,0.01112713]
[1768051245550,0.04774323,90736.0,90722.0,0.01112713]
[1768051245764,0.04774323,90736.0,90723.0,0.01102256]
[1768051247103,0.04774323,90736.0,90723.0,0.01097749]
[1768051248512,0.05876421,90736.0,90722.0,0.01112713]
[1768051249860,0.05876421,90736.0,90722.0,0.01108206]
[1768051250438,0.04774323,90736.0,90723.0,0.01102256]
[1768051250636,0.04774323,90736.0,90724.0,0.01102244]
[1768051252343,0.04774323,90736.0,90725.0,0.01102232]
[1768051252559,0.04774323,90736.0,90724.0,0.01102244]
[1768051253007,0.04774323,90736.0,90725.0,0.01102232]
[1768051253219,0.04774323,90736.0,90724.0,0.01102244]
[1768051253426,0.04774323,90736.0,90725.0,0.01102232]
[1768051254760,0.05571127,90744.0,90726.0,0.01157609]
[1768051254761,0.0480924,90741.0,90726.0,0.01157609]
[1768051254966,0.0480924,90741.0,90723.0,0.04609611]
[1768051254967,0.0480924,90741.0,90725.0,0.05511139]
[1768051255173,0.0480924,90741.0,90728.0,0.01102195]
[1768051256018,0.0480924,90740.0,90727.0,0.01102207]
[1768051256359,0.0480924,90740.0,90728.0,0.01102195]
[1768051257195,0.05911301,90739.0,90725.0,0.01102232]
[1768051257364,0.05911301,90739.0,90726.0,0.01102219]
[1768051257365,0.0480924,90739.0,90726.0,0.01102219]
[1768051257565,0.0480924,90739.0,90727.0,0.01102207]
[1768051257816,0.0480924,90739.0,90726.0,0.01102219]
[1768051258021,0.0480924,90739.0,90727.0,0.01102207]
[1768051259179,0.0480924,90739.0,90728.0,0.01102195]
[1768051259380,0.0480924,90739.0,90727.0,0.01102207]
[1768051259599,0.0480924,90739.0,90728.0,0.01102195]
[1768051261872,0.0480924,90739.0,90729.0,0.01102183]
[1768051263620,0.0480924,90739.0,90723.0,0.05711867]
[1768051263786,0.0480924,90739.0,90727.0,0.01102207]
[1768051263985,0.0480924,90739.0,90728.0,0.01102195]
[1768051264781,0.0480924,90739.0,90723.0,0.11223128]
[1768051264782,0.0480924,90739.0,90723.0,0.11223145]
[1768051264991,0.0480924,90739.0,90727.0,0.01102207]
[1768051265571,0.0480924,90739.0,90729.0,0.01102183]
[1768051266342,0.00061112,90744.0,90739.0,0.000954]
[1768051266985,0.00061112,90744.0,90733.0,0.05682876]
[1768051267268,0.00070144,90744.0,90733.0,0.05682876]
[1768051267758,0.00070144,90744.0,90734.0,0.01102122]
[1768051268003,0.00070144,90744.0,90735.0,0.05682852]
[1768051268221,4.4e-07,90744.0,90741.0,0.04580742]
[1768051268463,4.4e-07,90744.0,90739.0,0.03310061]
[1768051268928,4.4e-07,90744.0,90740.0,0.01102049]
[1768051269771,4.4e-07,90744.0,90739.0,0.07890803]
[1768051269978,4.4e-07,90744.0,90740.0,0.01102049]
[1768051270187,4.4e-07,90744.0,90739.0,0.06788742]
[1768051270396,4.4e-07,90744.0,90739.0,0.02208]
[1768051275600,0.04634714,90743.0,90738.0,0.02208]
[1768051277643,0.05736751,90741.0,90726.0,0.02208]
[1768051277908,0.04634714,90738.0,90727.0,0.02208]
[1768051278324,0.05736788,90738.0,90727.0,0.02208]
[1768051278530,0.01102086,90737.0,90727.0,0.02208]
[1768051278740,0.01102098,90736.0,90727.0,0.02208]
[1768051278935,0.01102086,90737.0,90727.0,0.02208]
[1768051279900,0.01102098,90736.0,90727.0,0.02208]
[1768051280110,0.0110211,90735.0,90727.0,0.02208]
[1768051280346,0.01102159,90731.0,90727.0,0.02208]
[1768051280543,0.01102134,90733.0,90727.0,0.02208]
[1768051280672,0.01102146,90732.0,90722.0,0.00014926]
[1768051280891,0.01102159,90731.0,90723.0,0.02208]
[1768051281407,0.01102171,90730.0,90723.0,0.02208]
[1768051282183,0.01102146,90732.0,90723.0,0.02208]
[1768051282415,0.01102159,90731.0,90723.0,0.02208]
[1768051282609,0.01102146,90732.0,90723.0,0.02208]
[1768051282817,0.01102159,90731.0,90723.0,0.02208]
[1768051283166,0.01102171,90730.0,90723.0,0.02208]
[1768051283523,0.01102146,90732.0,90723.0,0.02208]
[1768051283952,0.05510795,90731.0,90723.0,0.02208]
[1768051284161,0.01102171,90730.0,90723.0,0.02208]
[1768051284573,0.01102146,90732.0,90723.0,0.02208]
[1768051284777,0.01102159,90731.0,90723.0,0.02208]
[1768051284988,0.01102171,90730.0,90723.0,0.02208]
[1768051285379,0.01102183,90729.0,90723.0,0.02208]
[1768051285537,0.05736897,90729.0,90723.0,0.02208]
[1768051285743,0.05736897,90729.0,90722.0,0.00014926]
[1768051286317,0.01102195,90728.0,90722.0,0.00014926]
[1768051286524,0.05736897,90729.0,90722.0,0.00014926]
[1768051286957,0.01102195,90728.0,90722.0,0.00014926]
[1768051287162,0.05736921,90727.0,90722.0,0.00014926]
[1768051287584,0.01102232,90725.0,90722.0,0.00014926]
[1768051288385,0.04634714,90726.0,90722.0,0.00014926]
[1768051288592,0.01102207,90727.0,90722.0,0.00014926]
[1768051288811,0.01102195,90728.0,90722.0,0.00014926]
[1768051289854,0.01102219,90726.0,90722.0,0.00014926]
[1768051291315,0.01102195,90728.0,90722.0,0.00014926]
[1768051291544,0.01102207,90727.0,90722.0,0.00014926]
[1768051292683,0.01102195,90728.0,90722.0,0.00014926]
[1768051292888,0.01102219,90726.0,90722.0,0.00014926]
[1768051293307,0.01102232,90725.0,90722.0,0.00014926]
[1768051293917,0.01102207,90727.0,90722.0,0.00014926]
[1768051294769,0.01102195,90728.0,90722.0,0.00014926]
[1768051296239,0.01102207,90727.0,90722.0,0.00014926]
[1768051298977,0.01102219,90726.0,90722.0,0.00014926]
[1768051299400,0.01102207,90727.0,90722.0,0.00014926]
[1768051300420,0.01102195,90728.0,90722.0,0.00014926]
[1768051300839,0.01102207,90727.0,90722.0,0.00014926]
[1768051301257,0.01102195,90728.0,90722.0,0.00014926]
[1768051302488,0.04634714,90731.0,90722.0,0.00014926]
[1768051303098,0.23002164,90732.0,90722.0,0.00014926]
[1768051303301,0.01102159,90731.0,90722.0,0.00014926]
[1768051303718,0.23002164,90732.0,90722.0,0.00014926]
[1768051304520,0.21900018,90732.0,90722.0,0.00014926]
[1768051304937,0.01102159,90731.0,90722.0,0.00014926]
[1768051306169,0.21900018,90732.0,90722.0,0.00014926]
[1768051306170,0.23002164,90732.0,90722.0,0.00014926]
[1768051307030,0.01102134,90733.0,90722.0,0.00014926]
[1768051307234,0.23002164,90732.0,90722.0,0.00014926]
[1768051309758,0.21900018,90732.0,90722.0,0.00014926]
[1768051311864,0.23002164,90732.0,90722.0,0.00014926]
[1768051314748,0.01102159,90731.0,90722.0,0.00014926]
[1768051315153,0.01102171,90730.0,90722.0,0.00014926]
[1768051315953,0.01102159,90731.0,90722.0,0.00014926]
[1768051316380,0.01102171,90730.0,90722.0,0.00014926]
[1768051318826,0.01102183,90729.0,90722.0,0.00014926]
[1768051319069,0.01097657,90729.0,90722.0,0.00014926]